[Event "UK Open Blitz Championships 2024 - London Qualifier"]
[Site "London, United Kingdom"]
[Date "2024.09.21"]
[Round "14.4"]
[White "Banerjee, Supratit"]
[Black "Korshunov, Sergey"]
[Result "0-1"]
[TimeControl "3 minutes + 2 seconds incr. from move 1"]
[WhiteTitle "CM"]
[BlackTitle "FM"]
[WhiteFideId "2410079"]
[BlackFideId "34274715"]
[WhiteElo "2138"]
[BlackElo "2278"]

1. e4 {[%clk 00:03:03]} {[%emt 00:07:42]} c5 {[%clk 00:03:04]} 2. c3 {[%clk
00:03:04]} d5 {[%clk 00:03:03]} {[%emt 00:00:04]} 3. exd5 {[%clk 00:03:05]}
Qxd5 {[%clk 00:03:04]} {[%emt 00:00:01]} 4. d4 {[%clk 00:03:06]} {[%emt
00:00:01]} Nf6 {[%clk 00:03:01]} {[%emt 00:00:04]} 5. Nf3 {[%clk 00:03:06]}
{[%emt 00:00:02]} Bg4 {[%clk 00:03:02]} {[%emt 00:00:01]} 6. Nbd2 {[%clk
00:03:01]} {[%emt 00:00:07]} e6 {[%clk 00:02:46]} {[%emt 00:00:18]} 7. Bc4
{[%clk 00:02:58]} {[%emt 00:00:05]} Qd6 {[%clk 00:02:41]} {[%emt 00:00:07]} 8.
Qb3 {[%clk 00:02:53]} {[%emt 00:00:06]} Bxf3 {[%clk 00:02:33]} {[%emt
00:00:11]} 9. Nxf3 {[%clk 00:02:53]} {[%emt 00:00:02]} Qc7 {[%clk 00:02:34]}
{[%emt 00:00:02]} 10. O-O {[%clk 00:02:51]} {[%emt 00:00:04]} Be7 {[%clk
00:02:34]} {[%emt 00:00:02]} 11. Re1 {[%clk 00:02:47]} {[%emt 00:00:06]} O-O
{[%clk 00:02:29]} {[%emt 00:00:07]} 12. Bxe6 {[%clk 00:02:15]} {[%emt
00:00:33]} fxe6 {[%clk 00:02:10]} {[%emt 00:00:21]} 13. Qxe6+ {[%clk 00:02:15]}
{[%emt 00:00:02]} Rf7 {[%clk 00:02:12]} {[%emt 00:00:01]} 14. Ng5 {[%clk
00:01:36]} {[%emt 00:00:41]} Bf8 {[%emt 00:00:10]} 15. Bf4 {[%clk 00:01:28]}
Qd7 {[%clk 00:02:14]} 16. Nxf7 {[%clk 00:01:25]} {[%emt 00:00:04]} Qxf7 {[%clk
00:02:10]} {[%emt 00:00:06]} 17. Bxb8 {[%clk 00:01:19]} {[%emt 00:00:08]} Rxb8
{[%clk 00:02:09]} {[%emt 00:00:04]} 18. Rad1 {[%clk 00:01:17]} {[%emt
00:00:03]} Qxe6 {[%clk 00:02:08]} {[%emt 00:00:04]} 19. Rxe6 {[%clk 00:01:18]}
{[%emt 00:00:01]} Kf7 {[%clk 00:02:09]} 20. Ree1 {[%clk 00:01:18]} {[%emt
00:00:01]} c4 {[%clk 00:02:07]} {[%emt 00:00:05]} 21. f3 {[%clk 00:01:18]}
{[%emt 00:00:03]} Bd6 {[%clk 00:02:07]} {[%emt 00:00:01]} 22. g3 {[%clk
00:01:18]} {[%emt 00:00:02]} Nd5 {[%clk 00:02:07]} {[%emt 00:00:02]} 23. Kf2
{[%clk 00:01:17]} {[%emt 00:00:03]} b5 {[%clk 00:02:08]} 24. a3 {[%clk
00:01:15]} {[%emt 00:00:04]} a5 {[%clk 00:02:09]} 25. Re2 {[%clk 00:01:04]}
{[%emt 00:00:13]} g5 {[%clk 00:02:02]} {[%emt 00:00:10]} 26. Rde1 {[%clk
00:01:03]} {[%emt 00:00:02]} b4 {[%clk 00:01:57]} {[%emt 00:00:07]} 27. axb4
{[%clk 00:00:52]} {[%emt 00:00:13]} axb4 {[%clk 00:01:58]} 28. cxb4 {[%clk
00:00:53]} {[%emt 00:00:01]} Nxb4 {[%clk 00:01:53]} {[%emt 00:00:06]} 29. Rd1
{[%clk 00:00:44]} {[%emt 00:00:11]} Nd3+ {[%clk 00:01:54]} 30. Kf1 {[%clk
00:00:45]} {[%emt 00:00:01]} Nxb2 {[%clk 00:01:48]} {[%emt 00:00:08]} 31. Rb1
{[%clk 00:00:35]} {[%emt 00:00:12]} c3 {[%clk 00:01:48]} {[%emt 00:00:03]} 32.
Rc2 {[%clk 00:00:36]} Bb4 {[%clk 00:01:43]} {[%emt 00:00:07]} 33. Rcxb2 {[%clk
00:00:30]} {[%emt 00:00:08]} cxb2 {[%clk 00:01:44]} 34. Rxb2 {[%clk 00:00:30]}
{[%emt 00:00:02]} Ke6 {[%clk 00:01:45]} 35. Ke2 {[%clk 00:00:29]} {[%emt
00:00:02]} Kd5 {[%clk 00:01:46]} 36. Kd3 {[%clk 00:00:31]} Rb6 {[%clk
00:01:40]} {[%emt 00:00:08]} 37. h4 {[%clk 00:00:28]} {[%emt 00:00:05]} h6
{[%clk 00:01:38]} {[%emt 00:00:04]} 38. hxg5 {[%clk 00:00:24]} {[%emt
00:00:07]} hxg5 {[%clk 00:01:40]} 39. f4 {[%clk 00:00:25]} g4 {[%clk 00:01:41]}
40. Rb3 {[%clk 00:00:25]} {[%emt 00:00:02]} Bc5 {[%clk 00:01:34]} {[%emt
00:00:07]} 41. Rxb6 {[%clk 00:00:22]} {[%emt 00:00:06]} Bxb6 {[%clk 00:01:36]}
42. f5 {[%clk 00:00:20]} {[%emt 00:00:05]} Bxd4 {[%clk 00:01:37]} {[%emt
00:00:01]} 43. Ke2 {[%clk 00:00:19]} {[%emt 00:00:03]} Ke4 {[%clk 00:01:38]} 44.
f6 {[%clk 00:00:20]} Bxf6 {[%clk 00:01:39]} 45. Kf2 {[%clk 00:00:22]} Bd4+
{[%clk 00:01:40]} {[%emt 00:00:01]} 46. Kg2 {[%clk 00:00:23]} Ke3 {[%clk
00:01:41]} {[%emt 00:00:01]} 47. Kh2 {[%clk 00:00:23]} {[%emt 00:00:03]} Kf3
{[%clk 00:01:41]} 48. Kh1 {[%clk 00:00:25]} Bf2 {[%clk 00:01:42]} {[%emt
00:00:01]} 49. Kh2 {[%clk 00:00:26]} Bxg3+ {[%clk 00:01:43]} 50. Kh1 {[%clk
00:00:28]} Be5 {[%clk 00:01:43]} {[%emt 00:00:02]} 51. Kg1 {[%clk 00:00:30]} g3
{[%clk 00:01:44]} {[%emt 00:00:01]} 52. Kf1 {[%clk 00:00:28]} {[%emt 00:00:04]}
g2+ {[%clk 00:01:45]} 53. Ke1 {[%clk 00:00:29]} g1=Q+ {[%emt 00:00:02]} 54. Kd2
{[%clk 00:00:31]} Qd4+ {[%clk 00:01:46]} {[%emt 00:00:02]} 55. Kc2 {[%clk
00:00:32]} Qc3+ {[%clk 00:01:47]} {[%emt 00:00:01]} 56. Kd1 {[%clk 00:00:33]}
{[%emt 00:00:01]} Qb2 {[%clk 00:01:45]} {[%emt 00:00:03]} 57. Ke1 {[%clk
00:00:33]} {[%emt 00:00:02]} Bd4 {[%clk 00:01:45]} {[%emt 00:00:02]} 58. Kd1
{[%clk 00:00:34]} {[%emt 00:00:01]} Be3 {[%clk 00:01:45]} {[%emt 00:00:01]} 59.
Ke1 {[%clk 00:00:36]} {[%emt 00:00:01]} Qe2# {[%clk 00:01:46]} 0-1

[Event "UK Open Blitz Championships 2024 - London Qualifier"]
[Site "London, United Kingdom"]
[Date "2024.09.21"]
[Round "14.5"]
[White "Badacsonyi, Stanley"]
[Black "Roberson, Peter T"]
[Result "1-0"]
[TimeControl "3 minutes + 2 seconds incr. from move 1"]
[WhiteTitle "FM"]
[BlackTitle "IM"]
[WhiteFideId "486973"]
[BlackFideId "412384"]
[WhiteElo "2332"]
[BlackElo "2346"]

1. d4 {[%clk 00:03:03]} c5 {[%clk 00:03:04]} {[%emt 00:00:01]} 2. d5 {[%clk
00:03:04]} {[%emt 00:00:02]} g6 {[%clk 00:03:05]} 3. Nc3 {[%clk 00:03:04]}
{[%emt 00:00:02]} Bg7 {[%clk 00:03:06]} 4. e4 {[%clk 00:03:05]} d6 {[%clk
00:03:07]} 5. Nf3 {[%clk 00:03:06]} {[%emt 00:00:02]} Nf6 {[%clk 00:03:08]} 6.
Be2 {[%clk 00:03:07]} {[%emt 00:00:01]} O-O {[%clk 00:03:08]} {[%emt 00:00:02]}
7. O-O {[%clk 00:03:08]} {[%emt 00:00:02]} e6 {[%clk 00:03:07]} {[%emt
00:00:03]} 8. a4 {[%clk 00:03:06]} {[%emt 00:00:03]} exd5 {[%clk 00:03:07]}
{[%emt 00:00:02]} 9. exd5 {[%clk 00:03:07]} {[%emt 00:00:01]} Re8 {[%clk
00:02:57]} {[%emt 00:00:12]} 10. Nd2 {[%clk 00:03:08]} {[%emt 00:00:01]} Na6
{[%clk 00:02:39]} {[%emt 00:00:19]} 11. Nc4 {[%clk 00:03:08]} {[%emt 00:00:02]}
Ne4 {[%clk 00:02:38]} {[%emt 00:00:04]} 12. Nxe4 {[%clk 00:03:07]} {[%emt
00:00:03]} Rxe4 {[%clk 00:02:39]} 13. c3 {[%clk 00:03:08]} {[%emt 00:00:01]}
Nc7 {[%clk 00:02:35]} {[%emt 00:00:05]} 14. Be3 {[%clk 00:02:55]} {[%emt
00:00:16]} b6 {[%clk 00:02:27]} {[%emt 00:00:09]} 15. Re1 {[%clk 00:02:53]}
{[%emt 00:00:04]} Ba6 {[%clk 00:02:20]} {[%emt 00:00:09]} 16. Nd2 {[%clk
00:02:37]} {[%emt 00:00:18]} Bxe2 {[%clk 00:02:18]} {[%emt 00:00:04]} 17. Rxe2
{[%clk 00:02:38]} {[%emt 00:00:01]} Re8 {[%clk 00:02:09]} {[%emt 00:00:11]} 18.
Nc4 {[%clk 00:02:35]} {[%emt 00:00:05]} Qd7 {[%clk 00:02:01]} {[%emt 00:00:10]}
19. Qd3 {[%clk 00:02:35]} {[%emt 00:00:02]} Rab8 {[%clk 00:01:34]} {[%emt
00:00:29]} 20. Ree1 {[%clk 00:02:33]} {[%emt 00:00:04]} a6 {[%clk 00:01:27]}
{[%emt 00:00:09]} 21. Bf4 {[%clk 00:02:33]} {[%emt 00:00:03]} Bf8 {[%clk
00:01:20]} {[%emt 00:00:09]} 22. Rxe8 {[%clk 00:02:33]} {[%emt 00:00:02]} Qxe8
{[%clk 00:01:10]} {[%emt 00:00:13]} 23. Nxd6 {[%clk 00:02:26]} {[%emt
00:00:09]} Qd7 {[%clk 00:00:52]} {[%emt 00:00:20]} 24. Ne4 {[%clk 00:02:26]}
{[%emt 00:00:02]} Bg7 {[%clk 00:00:53]} 25. Rd1 {[%clk 00:02:19]} {[%emt
00:00:09]} Rd8 {[%clk 00:00:53]} {[%emt 00:00:02]} 26. Bg5 {[%clk 00:02:13]}
{[%emt 00:00:09]} Re8 {[%clk 00:00:45]} {[%emt 00:00:10]} 27. d6 {[%clk
00:02:05]} {[%emt 00:00:10]} Ne6 {[%clk 00:00:18]} {[%emt 00:00:29]} 28. Bh6
{[%clk 00:01:52]} {[%emt 00:00:15]} Qxa4 {[%clk 00:00:13]} {[%emt 00:00:07]} 29.
Bxg7 {[%clk 00:01:49]} {[%emt 00:00:04]} Kxg7 {[%emt 00:00:05]} 30. f3 {[%clk
00:01:45]} {[%emt 00:00:02]} Rd8 {[%clk 00:00:14]} {[%emt 00:00:03]} 31. Qd5
{[%clk 00:01:44]} {[%emt 00:00:03]} f6 {[%clk 00:00:07]} {[%emt 00:00:09]} 32.
Re1 {[%clk 00:01:29]} {[%emt 00:00:17]} Nf4 {[%emt 00:00:07]} 33. Qb7+ {[%clk
00:01:18]} {[%emt 00:00:11]} Rd7 {[%clk 00:00:04]} {[%emt 00:00:02]} 34. Qxb6
{[%clk 00:01:19]} {[%emt 00:00:01]} Qc2 {[%clk 00:00:04]} {[%emt 00:00:01]} 35.
Nf2 {[%clk 00:01:16]} {[%emt 00:00:05]} Qd2 {[%clk 00:00:04]} {[%emt 00:00:03]}
36. Rd1 {[%clk 00:01:02]} {[%emt 00:00:14]} Qe2 {[%clk 00:00:03]} {[%emt
00:00:05]} 37. Qxc5 {[%clk 00:00:56]} {[%emt 00:00:08]} g5 {[%emt 00:00:03]} 38.
Qc6 {[%clk 00:00:40]} {[%emt 00:00:15]} Qe6 {[%clk 00:00:05]} {[%emt 00:00:01]}
39. Ne4 {[%clk 00:00:37]} {[%emt 00:00:06]} f5 {[%clk 00:00:05]} {[%emt
00:00:03]} 40. Nf2 {[%clk 00:00:23]} {[%emt 00:00:15]} Kg6 {[%clk 00:00:04]}
{[%emt 00:00:03]} 41. g3 {[%clk 00:00:24]} Ne2+ {[%clk 00:00:05]} 42. Kg2
{[%clk 00:00:24]} {[%emt 00:00:03]} g4 {[%clk 00:00:07]} 43. fxg4 {[%clk
00:00:24]} {[%emt 00:00:02]} fxg4 {[%clk 00:00:05]} {[%emt 00:00:03]} 44. Qe4+
{[%clk 00:00:25]} Kf7 {[%clk 00:00:05]} {[%emt 00:00:02]} 45. Qxe6+ {[%clk
00:00:24]} {[%emt 00:00:03]} Kxe6 {[%clk 00:00:06]} 46. Re1 {[%clk 00:00:26]}
Rxd6 {[%clk 00:00:05]} {[%emt 00:00:03]} 47. Rxe2+ {[%clk 00:00:27]} Kf5 {[%clk
00:00:06]} 48. Rc2 {[%clk 00:00:26]} {[%emt 00:00:04]} h5 {[%clk 00:00:07]}
{[%emt 00:00:01]} 49. c4 {[%clk 00:00:27]} Ke5 {[%clk 00:00:07]} {[%emt
00:00:01]} 50. c5 {[%clk 00:00:28]} {[%emt 00:00:01]} Rc6 {[%clk 00:00:09]} 51.
Nd3+ {[%clk 00:00:29]} Kd4 {[%emt 00:00:02]} 52. Nb4 {[%clk 00:00:29]} {[%emt
00:00:02]} Rc8 {[%clk 00:00:07]} {[%emt 00:00:04]} 53. Nxa6 {[%clk 00:00:29]}
{[%emt 00:00:02]} h4 {[%clk 00:00:08]} {[%emt 00:00:01]} 54. gxh4 {[%clk
00:00:31]} Kd3 {[%clk 00:00:09]} 55. Nb4+ {[%clk 00:00:31]} {[%emt 00:00:01]}
Ke3 {[%clk 00:00:10]} {[%emt 00:00:01]} 56. c6 {[%clk 00:00:32]} {[%emt
00:00:01]} Rb8 {[%clk 00:03:02]} {[%emt 00:00:06]} 1-0

[Event "UK Open Blitz Championships 2024 - London Qualifier"]
[Site "London, United Kingdom"]
[Date "2024.09.21"]
[Round "15.1"]
[White "Gasanov, Eldar"]
[Black "Badacsonyi, Stanley"]
[Result "1-0"]
[TimeControl "3 minutes + 2 seconds incr. from move 1"]
[WhiteTitle "GM"]
[BlackTitle "FM"]
[WhiteFideId "14104466"]
[BlackFideId "486973"]
[WhiteElo "2467"]
[BlackElo "2332"]

1. d4 {[%clk 00:03:03]} Nf6 {[%clk 00:03:03]} 2. c4 {[%clk 00:03:04]} g6 {[%clk
00:03:05]} {[%emt 00:00:01]} 3. Nc3 {[%clk 00:03:04]} {[%emt 00:00:01]} Bg7
{[%clk 00:03:06]} {[%emt 00:00:01]} 4. Bg5 {[%clk 00:03:05]} {[%emt 00:00:01]}
c5 {[%clk 00:03:05]} {[%emt 00:00:04]} 5. d5 {[%clk 00:03:03]} {[%emt
00:00:03]} O-O {[%clk 00:03:04]} {[%emt 00:00:02]} 6. e4 {[%clk 00:02:58]}
{[%emt 00:00:07]} d6 {[%clk 00:03:05]} {[%emt 00:00:01]} 7. Qd2 {[%clk
00:02:45]} {[%emt 00:00:15]} a6 {[%clk 00:03:05]} {[%emt 00:00:03]} 8. a4
{[%clk 00:02:44]} {[%emt 00:00:03]} Qa5 {[%clk 00:03:05]} {[%emt 00:00:02]} 9.
Bd3 {[%clk 00:02:40]} {[%emt 00:00:06]} b5 {[%clk 00:03:06]} {[%emt 00:00:02]}
10. cxb5 {[%clk 00:02:37]} {[%emt 00:00:05]} axb5 {[%clk 00:03:07]} 11. Nxb5
{[%clk 00:02:32]} {[%emt 00:00:07]} Qb6 {[%clk 00:02:57]} {[%emt 00:00:12]} 12.
Ne2 {[%clk 00:02:23]} {[%emt 00:00:11]} Na6 {[%clk 00:02:58]} {[%emt 00:00:02]}
13. Nec3 {[%clk 00:02:12]} {[%emt 00:00:13]} Nb4 {[%clk 00:02:56]} {[%emt
00:00:04]} 14. Be2 {[%clk 00:02:09]} {[%emt 00:00:04]} e6 {[%clk 00:02:56]}
{[%emt 00:00:03]} 15. dxe6 {[%clk 00:01:50]} {[%emt 00:00:21]} Bxe6 {[%clk
00:02:57]} 16. O-O {[%clk 00:01:51]} {[%emt 00:00:01]} Rfd8 {[%clk 00:02:53]}
{[%emt 00:00:06]} 17. Qf4 {[%clk 00:01:51]} {[%emt 00:00:02]} Ne8 {[%clk
00:02:27]} {[%emt 00:00:28]} 18. Bxd8 {[%clk 00:01:47]} {[%emt 00:00:06]} Rxd8
{[%clk 00:02:28]} 19. Rad1 {[%clk 00:01:26]} {[%emt 00:00:22]} Bb3 {[%clk
00:02:27]} {[%emt 00:00:04]} 20. Rd2 {[%clk 00:01:20]} {[%emt 00:00:08]} Be5
{[%clk 00:02:27]} {[%emt 00:00:02]} 21. Qh4 {[%clk 00:01:16]} {[%emt 00:00:05]}
Ra8 {[%clk 00:02:27]} {[%emt 00:00:03]} 22. f4 {[%clk 00:00:51]} {[%emt
00:00:27]} Bf6 {[%clk 00:02:28]} {[%emt 00:00:01]} 23. Qf2 {[%clk 00:00:50]}
{[%emt 00:00:02]} Ra5 {[%clk 00:02:06]} {[%emt 00:00:25]} 24. Kh1 {[%clk
00:00:38]} {[%emt 00:00:14]} Be7 {[%clk 00:02:03]} {[%emt 00:00:05]} 25. Bd1
{[%clk 00:00:31]} {[%emt 00:00:09]} Bc4 {[%clk 00:02:03]} {[%emt 00:00:02]} 26.
Be2 {[%clk 00:00:32]} {[%emt 00:00:02]} Bb3 {[%clk 00:02:04]} {[%emt 00:00:01]}
27. h3 {[%clk 00:00:23]} {[%emt 00:00:11]} Qc6 {[%clk 00:01:51]} {[%emt
00:00:15]} 28. Bf3 {[%clk 00:00:22]} {[%emt 00:00:03]} Qa6 {[%clk 00:01:48]}
{[%emt 00:00:04]} 29. e5 {[%clk 00:00:20]} {[%emt 00:00:04]} dxe5 {[%clk
00:01:49]} {[%emt 00:00:01]} 30. fxe5 {[%clk 00:00:21]} {[%emt 00:00:02]} Be6
{[%emt 00:00:13]} 31. Nd5 {[%clk 00:00:15]} Bg5 {[%clk 00:01:45]} {[%emt
00:00:02]} 32. Rdd1 {[%clk 00:00:10]} {[%emt 00:00:06]} Rxa4 {[%clk 00:01:44]}
{[%emt 00:00:03]} 33. Nbc3 {[%clk 00:00:11]} {[%emt 00:00:01]} Ra5 {[%clk
00:01:43]} {[%emt 00:00:03]} 34. Qg3 {[%clk 00:00:11]} {[%emt 00:00:02]} Bh6
{[%clk 00:01:34]} {[%emt 00:00:10]} 35. Qh4 {[%clk 00:00:13]} Bg7 {[%clk
00:01:32]} {[%emt 00:00:05]} 36. Qe7 {[%clk 00:00:14]} Qc8 {[%clk 00:01:28]}
{[%emt 00:00:06]} 37. Nb6 {[%clk 00:00:14]} {[%emt 00:00:02]} Bf8 {[%clk
00:01:05]} {[%emt 00:00:24]} 38. Nxc8 {[%clk 00:00:13]} {[%emt 00:00:03]} Bxe7
{[%clk 00:01:06]} 39. Nxe7+ {[%clk 00:00:14]} Kg7 {[%clk 00:01:07]} {[%emt
00:00:01]} 40. Nc6 {[%clk 00:00:13]} {[%emt 00:00:02]} Nxc6 {[%clk 00:01:06]}
{[%emt 00:00:04]} 41. Bxc6 {[%clk 00:00:14]} Nc7 {[%clk 00:01:08]} 42. Bd5
{[%clk 00:00:14]} {[%emt 00:00:03]} Nxd5 {[%clk 00:01:08]} {[%emt 00:00:02]} 43.
Nxd5 {[%clk 00:00:15]} Ra2 {[%clk 00:01:09]} 44. Rf2 {[%clk 00:00:16]} {[%emt
00:00:02]} c4 {[%clk 00:01:07]} {[%emt 00:00:04]} 45. Nc3 {[%clk 00:00:16]}
{[%emt 00:00:01]} Ra5 {[%clk 00:01:08]} {[%emt 00:00:02]} 46. Re1 {[%clk
00:00:17]} {[%emt 00:00:01]} Rc5 {[%clk 00:01:08]} {[%emt 00:00:01]} 47. Kh2
{[%clk 00:00:18]} {[%emt 00:00:02]} h5 {[%clk 00:01:09]} {[%emt 00:00:01]} 48.
Re4 {[%clk 00:00:18]} {[%emt 00:00:02]} Rc7 {[%clk 00:01:09]} {[%emt 00:00:02]}
49. Re3 {[%clk 00:00:18]} {[%emt 00:00:02]} Rc5 {[%clk 00:01:10]} 50. h4 {[%clk
00:00:18]} {[%emt 00:00:02]} Rc7 {[%clk 00:01:10]} {[%emt 00:00:01]} 51. Ne4
{[%clk 00:00:20]} Ra7 {[%clk 00:01:09]} {[%emt 00:00:03]} 52. Ng5 {[%clk
00:00:20]} {[%emt 00:00:01]} Bf5 {[%clk 00:01:09]} {[%emt 00:00:02]} 53. e6
{[%clk 00:00:19]} {[%emt 00:00:03]} fxe6 {[%clk 00:01:08]} {[%emt 00:00:04]} 54.
Nxe6+ {[%clk 00:00:21]} Kh6 {[%clk 00:01:09]} 55. Nd4 {[%emt 00:00:02]} Bd3
{[%clk 00:01:09]} {[%emt 00:00:01]} 56. b3 {[%clk 00:00:21]} {[%emt 00:00:03]}
Rd7 {[%clk 00:01:10]} {[%emt 00:00:01]} 57. Rf4 {[%clk 00:00:18]} {[%emt
00:00:05]} Rd5 {[%clk 00:01:01]} {[%emt 00:00:11]} 58. bxc4 {[%clk 00:00:17]}
{[%emt 00:00:03]} Bxc4 {[%clk 00:01:01]} 59. Nf3 {[%clk 00:00:17]} {[%emt
00:00:02]} Bd3 {[%clk 00:01:01]} {[%emt 00:00:03]} 60. Rd4 {[%clk 00:00:18]}
{[%emt 00:00:01]} 1-0

[Event "UK Open Blitz Championships 2024 - London Qualifier"]
[Site "London, United Kingdom"]
[Date "2024.09.21"]
[Round "15.2"]
[White "Han, Yichen"]
[Black "Royal, Shreyas"]
[Result "0-1"]
[TimeControl "3 minutes + 2 seconds incr. from move 1"]
[WhiteTitle "IM"]
[BlackTitle "IM"]
[WhiteFideId "1054430"]
[BlackFideId "448869"]
[WhiteElo "2350"]
[BlackElo "2331"]

1. e4 {[%clk 00:03:03]} {[%emt 00:00:01]} c5 {[%clk 00:03:04]} 2. Nc3 {[%clk
00:03:04]} {[%emt 00:00:01]} Nc6 {[%clk 00:03:04]} {[%emt 00:00:01]} 3. Bb5
{[%clk 00:03:04]} {[%emt 00:00:01]} Nd4 {[%clk 00:03:05]} {[%emt 00:00:02]} 4.
Nf3 {[%clk 00:03:04]} {[%emt 00:00:01]} Nf6 {[%clk 00:03:06]} {[%emt 00:00:01]}
5. O-O {[%clk 00:02:52]} {[%emt 00:00:15]} Nxb5 {[%clk 00:02:54]} {[%emt
00:00:13]} 6. Nxb5 {[%clk 00:02:53]} {[%emt 00:00:01]} d6 {[%clk 00:02:56]} 7.
d4 {[%clk 00:02:42]} {[%emt 00:00:13]} a6 {[%clk 00:02:53]} {[%emt 00:00:04]} 8.
Nc3 {[%clk 00:02:43]} {[%emt 00:00:01]} cxd4 {[%clk 00:02:54]} 9. Qxd4 {[%clk
00:02:44]} {[%emt 00:00:01]} e5 {[%clk 00:02:46]} {[%emt 00:00:11]} 10. Qb4
{[%clk 00:02:40]} {[%emt 00:00:05]} d5 {[%clk 00:02:40]} {[%emt 00:00:08]} 11.
Qb3 {[%clk 00:02:38]} {[%emt 00:00:05]} d4 {[%clk 00:02:25]} {[%emt 00:00:17]}
12. Nd5 {[%clk 00:01:28]} {[%emt 00:01:12]} Nxd5 {[%clk 00:01:43]} {[%emt
00:00:44]} 13. exd5 {[%clk 00:01:28]} {[%emt 00:00:02]} f6 {[%clk 00:01:42]}
{[%emt 00:00:04]} 14. Re1 {[%clk 00:01:11]} {[%emt 00:00:19]} Be7 {[%clk
00:01:42]} {[%emt 00:00:01]} 15. c3 {[%clk 00:01:04]} {[%emt 00:00:08]} dxc3
{[%clk 00:01:42]} {[%emt 00:00:03]} 16. bxc3 {[%clk 00:01:04]} {[%emt
00:00:02]} Bd6 {[%clk 00:01:25]} {[%emt 00:00:19]} 17. Ba3 {[%clk 00:00:50]}
{[%emt 00:00:15]} O-O {[%clk 00:01:24]} {[%emt 00:00:02]} 18. c4 {[%clk
00:00:44]} {[%emt 00:00:09]} Bxa3 {[%clk 00:01:24]} {[%emt 00:00:02]} 19. Qxa3
{[%clk 00:00:45]} {[%emt 00:00:01]} Bg4 {[%clk 00:01:19]} {[%emt 00:00:07]} 20.
Nd2 {[%clk 00:00:44]} {[%emt 00:00:03]} Rc8 {[%clk 00:01:18]} {[%emt 00:00:03]}
21. Qb3 {[%clk 00:00:39]} {[%emt 00:00:07]} Qd7 {[%clk 00:01:12]} {[%emt
00:00:07]} 22. Rab1 {[%clk 00:00:36]} {[%emt 00:00:05]} Rc7 {[%clk 00:01:10]}
{[%emt 00:00:04]} 23. Ne4 {[%clk 00:00:28]} {[%emt 00:00:10]} Bf5 {[%clk
00:00:57]} {[%emt 00:00:15]} 24. d6 {[%clk 00:00:29]} {[%emt 00:00:01]} Rcc8
{[%clk 00:00:54]} {[%emt 00:00:05]} 25. c5+ {[%clk 00:00:26]} {[%emt 00:00:05]}
Kh8 {[%clk 00:00:51]} {[%emt 00:00:05]} 26. Qd5 {[%clk 00:00:21]} {[%emt
00:00:07]} Rc6 {[%clk 00:00:48]} {[%emt 00:00:05]} 27. Rbc1 {[%clk 00:00:13]}
{[%emt 00:00:11]} Rfc8 {[%clk 00:00:46]} {[%emt 00:00:03]} 28. Nd2 {[%clk
00:00:05]} {[%emt 00:00:10]} b6 {[%clk 00:00:44]} {[%emt 00:00:04]} 29. Nb3
{[%clk 00:00:05]} {[%emt 00:00:02]} Be6 {[%clk 00:00:45]} {[%emt 00:00:01]} 30.
Qd3 {[%clk 00:00:06]} bxc5 {[%clk 00:00:44]} {[%emt 00:00:03]} 31. Na5 {[%clk
00:00:04]} {[%emt 00:00:04]} Rxd6 {[%clk 00:00:45]} {[%emt 00:00:01]} 32. Qe3
{[%clk 00:00:05]} c4 {[%clk 00:00:44]} {[%emt 00:00:03]} 33. h3 {[%clk
00:00:05]} {[%emt 00:00:03]} Qb5 {[%clk 00:00:41]} {[%emt 00:00:04]} 34. Qa3
{[%clk 00:00:04]} {[%emt 00:00:03]} Qd7 {[%clk 00:00:32]} {[%emt 00:00:10]} 35.
Qb4 {[%clk 00:00:05]} {[%emt 00:00:02]} Rd4 {[%clk 00:00:33]} {[%emt 00:00:01]}
36. Nb7 {[%clk 00:00:04]} {[%emt 00:00:03]} Rb8 {[%clk 00:00:33]} {[%emt
00:00:02]} 37. Rb1 {[%clk 00:00:05]} {[%emt 00:00:01]} Bd5 {[%clk 00:00:33]}
{[%emt 00:00:02]} 38. Nc5 {[%clk 00:00:04]} {[%emt 00:00:04]} Rxb4 {[%clk
00:00:33]} {[%emt 00:00:02]} 39. Nxd7 {[%clk 00:00:04]} {[%emt 00:00:02]} Rxb1
{[%clk 00:00:32]} {[%emt 00:00:03]} 40. Rxb1 {[%clk 00:00:05]} h5 {[%clk
00:00:33]} {[%emt 00:00:02]} 41. Nf8 {[%clk 00:00:05]} {[%emt 00:00:02]} c3
{[%clk 00:00:31]} {[%emt 00:00:04]} 42. Rb8 {[%clk 00:00:06]} {[%emt 00:00:01]}
c2 {[%clk 00:00:27]} {[%emt 00:00:06]} 43. Rc8 {[%clk 00:00:03]} {[%emt
00:00:04]} Rd1+ {[%clk 00:00:28]} 44. Kh2 {[%clk 00:00:05]} c1=Q {[%clk
00:00:29]} {[%emt 00:00:02]} 0-1